Cogmind - Beta 15 @@@ ROGUE MODE // 2025.09.14 @ 02:59:38 // Winter2019/RPGLIKE Player: Toaster Result: Self-destructed Performance ------------- Evolutions (6) 3000 Regions Visited (9) 1800 Robots Destroyed (98) 490 Value Destroyed (4143) 4143 Prototype IDs (26) 520 Alien Tech Used (0) 0 Bonus (1695) 1695 TOTAL SCORE: 11648 Bonus ------- Registered with UFD 300 Met Warlord at Base 500 MAIN.C Attacked Warlord 500 Warlord Defense Kills 712 Friendly Fire -317 Cogmind --------- Core Integrity 1050/1050 Matter 300/300 Energy 735/740 System Corruption 0% Temperature Cool (0) Movement Rolling (84) Ox1 Location -4/Factory Parts ------- > --- POWER (1+2) ------ Angular Momentum Engine Neutrino Core (+) Reinforced Antimatter Reactor (+) > --- PROPULSION (4) --- Wheel Overtuned Scrapsphere Overtuned Huge Scrapsphere > --- UTILITY (5) ------ Scrap Suit Experimental Signal Interpreter EM Shield Power Bank > --- WEAPON (3) ------- Heavy Phase Cannon Heavy Phase Cannon Overtuned Coil Gun > --- INVENTORY (1) ---- (None) Peak State ------------ > --- POWER ------------ Angular Momentum Engine Neutrino Core Reinforced Antimatter Reactor > --- PROPULSION ------- Wheel Overtuned Scrapsphere Overtuned Huge Scrapsphere > --- UTILITY ---------- Scrap Suit Experimental Signal Interpreter EM Shield Power Bank > --- WEAPON ----------- Heavy Phase Cannon Heavy Phase Cannon Overtuned Coil Gun > --- INVENTORY -------- (None) [Rating: 82] Favorites ----------- Power Angular Momentum Engine Engine Angular Momentum Engine Power Core Neutrino Core Reactor Reinforced Antimatter Reactor Propulsion Overtuned Huge Scrapsphere Leg Makeshift Leg Wheel Overtuned Huge Scrapsphere Utility Power Bank Device Power Bank Processor Experimental Signal Interpreter Protection Scrap Shield Weapon EM Pulse Gun Energy Gun EM Pulse Gun Energy Cannon Heavy Phase Cannon Ballistic Gun Overtuned Coil Gun Ballistic Cannon Battle Cannon Launcher Thermoblaster Special Weapon Mining Laser Build | -11 -10 -10 -7 -5 -5 -5 -5 -4 -4 ------- Run | Yrd Mat Sub Scr Fac Upp Upp War Pro Fac Slots Evolved 9 | 2 2 1 1 1 1 . . 1 . Power . | . . . . . . . . . . Propulsion 3 | 1 . . . 1 . . . 1 . Utility 4 | . 1 1 1 . 1 . . . . Weapon 2 | 1 1 . . . . . . . . Parts Attached 45 | 5 9 8 11 6 1 1 3 1 . Power 5 | 1 . 1 1 1 . . 1 . . Engine 3 | 1 . 1 1 . . . . . . Core 1 | . . . . 1 . . . . . Reactor 1 | . . . . . . . 1 . . Propulsion 11 | 2 . 3 4 1 . . . 1 . Treads . | . . . . . . . . . . Leg 6 | . . 3 3 . . . . . . Wheel 5 | 2 . . 1 1 . . . 1 . Hover . | . . . . . . . . . . Flight . | . . . . . . . . . . Utility 10 | . 3 2 3 . 1 1 . . . Device 6 | . 2 1 1 . 1 1 . . . Storage . | . . . . . . . . . . Processor 1 | . . . 1 . . . . . . Hackware . | . . . . . . . . . . Protection 3 | . 1 1 1 . . . . . . Artifact . | . . . . . . . . . . Weapon 19 | 2 6 2 3 4 . . 2 . . Energy Gun 5 | 2 3 . . . . . . . . Energy Cannon 7 | . 1 1 1 4 . . . . . Ballistic Gun 3 | . 2 . 1 . . . . . . Ballistic Cannon 1 | . . . 1 . . . . . . Launcher 2 | . . . . . . . 2 . . Special Weapon 1 | . . 1 . . . . . . . Impact Weapon . | . . . . . . . . . . Slashing Weapon . | . . . . . . . . . . Piercing Weapon . | . . . . . . . . . . Special Melee Weapon . | . . . . . . . . . . Unidentified Prototypes 1 | . 1 . . . . . . . . Parts Lost . | . . . . . . . . . . Power . | . . . . . . . . . . Propulsion . | . . . . . . . . . . Utility . | . . . . . . . . . . Weapon . | . . . . . . . . . . Highest Loss Streak . | . . . . . . . . . . To Critical Strikes . | . . . . . . . . . . Average Backups . | . . 1 . . . 1 1 . . Power . | . . . . . . . . . . Propulsion . | . . . . . . 1 1 . . Utility . | . . . . . . . . . . Weapon . | . . 1 . . . . . . . Tool/Special . | . . . . . . . . . . Unused Backups 2 | . . . 1 1 . . . . . Power . | . . . . . . . . . . Propulsion 1 | . . . . 1 . . . . . Utility . | . . . . . . . . . . Weapon 1 | . . . 1 . . . . . . Tool/Special . | . . . . . . . . . . Average Slot Usage (%) 75 | . 96 84 60 68 72 73 71 85 86 Engine 7 | . 15 11 3 7 6 6 6 6 6 Core 2 | . . . . 5 6 6 6 6 6 Leg 6 | . . 14 12 . . . . . . Wheel 11 | . 31 8 1 13 13 13 13 19 20 Device 10 | . 3 1 9 14 19 20 20 20 20 Processor 4 | . . . 6 7 6 6 6 6 6 Protection 5 | . 11 11 5 . . . . . . Energy Gun 12 | . 9 32 12 . . . . . . Energy Cannon 6 | . 7 . 3 13 13 13 4 13 13 Ballistic Gun 4 | . 15 . 1 7 6 6 2 6 6 Peak Build Rating 82 | 5 10 24 53 69 73 74 81 82 82 Average Rating 42 | 3 8 13 33 66 72 73 71 81 82 On Entrance 46 | . 5 8 24 53 69 73 74 81 82 Naked Turns . | . . . . . . . . . . Heaviest Build 84 | 7 15 38 38 59 60 60 84 84 84 Greatest Support 48 | 25 25 45 43 38 38 38 38 48 48 Greatest Overweight (x) 4 | . . 1 4 1 1 1 2 2 1 Average Overweight (x) . | . . . . . 1 1 1 1 1 Largest Inventory Capacity 1 | 1 1 1 1 1 1 1 1 1 1 Average Capacity 1 | 1 1 1 1 1 1 1 1 1 1 Most Carried 1 | . 1 1 1 1 1 1 1 1 . Average Carried . | . . . . . . 1 1 . . Final Capacity 1 | 1 1 1 1 1 1 1 1 1 1 Final Carried 1 | . 1 1 1 1 1 1 1 . . Class Distribution -------------------- 30% | Scrapper 25% | Gunner 20% | Mutant 15% | Hacker-Scrapper 4% | Skirmisher Dominant Class ---------------- Mutant | -10/Materials Gunner | -10/Subcaves Mutant | -7/Scraptown Scrapper | -5/Factory Scrapper | -5/Upper Caves Scrapper | -5/Upper Caves Hacker-Scrapper | -5/Warlord Hacker-Scrapper | -4/Proximity Caves Hacker-Scrapper | -4/Factory Resources | -11 -10 -10 -7 -5 -5 -5 -5 -4 -4 ----------- Run | Yrd Mat Sub Scr Fac Upp Upp War Pro Fac Matter Collected 1515 | 245 184 210 150 206 174 76 152 118 . Remotely . | . . . . . . . . . . Salvage Created 4258 | . 656 729 . 707 967 551 344 304 . Parts 226 | . 33 70 . 38 31 15 13 26 . Haulers Intercepted . | . . . . . . . . . . Recyclers Shooed 1 | . 1 . . . . . . . . Parts Field Recycled . | . . . . . . . . . . Retrieved Matter . | . . . . . . . . . . Parts Self-Destructed 90 | . . 19 . . 30 15 . 26 . Prevented 2 | . . 2 . . . . . . . Kills | -11 -10 -10 -7 -5 -5 -5 -5 -4 -4 ------- Run | Yrd Mat Sub Scr Fac Upp Upp War Pro Fac Combat Hostiles Destroyed 84 | . 13 22 . 10 14 9 7 9 . Guns 47 | . 10 17 . 7 6 5 1 1 . Cannons 27 | . 3 . . 3 6 4 3 8 . AOE 2 | . . . . . . . 2 . . Classes Destroyed 20 | . 5 3 . 4 3 1 4 . . Worker 1 | . . . . 1 . . . . . Builder 2 | . . . . 2 . . . . . Recycler 1 | . 1 . . . . . . . . Operator 4 | . 1 . . 3 . . . . . Turret 2 | . . 2 . . . . . . . Watcher 3 | . 3 . . . . . . . . Swarmer 12 | . 3 7 . . . 1 1 . . Saboteur 2 | . . . . . . . 2 . . Grunt 39 | . 10 2 . 7 8 6 1 5 . Brawler 1 | . . . . . 1 . . . . Duelist 2 | . . . . . 1 . . 1 . Protector 1 | . . . . . . . 1 . . Sentry 5 | . . . . 1 2 1 . 1 . Hunter 2 | . . . . . 2 . . . . Programmer 4 | . . . . 2 . . . 2 . Behemoth 1 | . . . . . . . 1 . . Striker 1 | . . . . . . . 1 . . Artisan 2 | . . 2 . . . . . . . Subdweller 13 | . . 13 . . . . . . . Savage 1 | . . . . . 1 . . . . Mutant 1 | . . . . . . 1 . . . Best Kill Streak 5 | . 5 4 . 5 4 5 3 4 . Combat Bots Only 5 | . 3 3 . 4 4 5 3 4 . Max Kills in Single Turn 2 | . 1 2 . 2 1 1 1 1 . Gunslinging 1 | . . 1 . . . . . . . Exploded 1 | . . . . . . . 1 . . Melee . | . . . . . . . . . . Uniques/NPCs Destroyed . | . . . . . . . . . . Combat | -11 -10 -10 -7 -5 -5 -5 -5 -4 -4 -------- Run | Yrd Mat Sub Scr Fac Upp Upp War Pro Fac Hostile Shots Fired 382 | . 35 103 . 51 52 23 73 45 . Missed 132 | . 10 36 . 21 20 5 22 18 . Hits 250 | . 25 67 . 30 32 18 51 27 . Melee 3 | . . . . . 1 . 1 1 . Projectile 247 | . 25 67 . 30 31 18 50 26 . AOE 6 | . . . . 1 . . 5 . . Critical Strikes 9 | . . . . 2 1 1 3 2 . Damage Taken 4576 | . 318 1020 . 581 587 392 1134 544 . Core 3464 | . 225 580 . 478 470 323 944 444 . Absorbed by Shields 30 | . . . . 30 . . . . . Redirected to Core 2756 | . 188 485 . 383 423 246 692 339 . Ignored by Resistances 17 | . . . . . . . 6 11 . Core Remaining (%) 94 | 100 . . 83 . . . . 100 . Volleys Fired 299 | . 34 124 . 38 39 22 20 22 . Largest 3 | . 3 3 . 3 3 3 3 3 . Hottest 520 | . 120 180 . 212 212 212 520 212 . Shots Fired 738 | . 71 286 . 88 115 60 52 66 . Gun 420 | . 49 242 . 37 38 19 13 22 . Cannon 262 | . 22 1 . 51 77 41 26 44 . Launcher 13 | . . . . . . . 13 . . Special 43 | . . 43 . . . . . . . Kinetic 161 | . 32 . . 37 38 19 13 22 . Thermal 320 | . 24 44 . 51 77 41 39 44 . Explosive . | . . . . . . . . . . Electromagnetic 257 | . 15 242 . . . . . . . Robot Hit Streak 34 | . 12 34 . 12 15 19 12 17 . Robot Miss Streak 5 | . 2 4 . 3 5 2 2 2 . Penetration Max 2 | . . . . 1 2 . 2 . . Secondary Targets 3 | . . 3 . . . . . . . Max Gunslinging Chain 1 | . . 1 . . . . . . . Shots Hit Robots 501 | . 49 192 . 60 74 45 34 47 . Core Hits 196 | . 25 61 . 27 29 16 21 17 . Critical Kills 6 | . . . . 2 3 1 . . . Critical Parts Destroyed 4 | . . . . . 1 1 1 1 . Critical Strikes 14 | . . 3 . 2 4 2 1 2 . Meltdown 2 | . . . . . 2 . . . . Destroy 9 | . . . . 2 2 2 1 2 . Corrupt 3 | . . 3 . . . . . . . Melee Attacks . | . . . . . . . . . . Impact . | . . . . . . . . . . Slashing . | . . . . . . . . . . Piercing . | . . . . . . . . . . Sneak Attacks . | . . . . . . . . . . Combat Hostiles . | . . . . . . . . . . Follow-up Attacks . | . . . . . . . . . . Damage Inflicted 12166 | . 814 1991 . 2096 2493 1431 1764 1577 . Guns 5294 | . 536 1991 . 895 727 306 503 336 . Cannons 6218 | . 265 . . 1128 1766 1125 693 1241 . Explosions 641 | . . . . 73 . . 568 . . Melee . | . . . . . . . . . . Ramming 13 | . 13 . . . . . . . . Kinetic 3184 | . 417 . . 895 727 306 503 336 . Thermal 6881 | . 287 . . 1201 1766 1125 1261 1241 . Explosive . | . . . . . . . . . . Electromagnetic 2088 | . 97 1991 . . . . . . . Impact . | . . . . . . . . . . Slashing . | . . . . . . . . . . Piercing . | . . . . . . . . . . Highest Corruption 1 | . . . . 1 1 . . . . Average Corruption 1 | . . . . 1 1 . . . . Corruption Purged 1 | . . . . . 1 . . . . Corruption Blocked . | . . . . . . . . . . Effects 4 | . . . . 3 1 . . . . Message Errors 1 | . . . . 1 . . . . . Heat Flow Errors 2 | . . . . 2 . . . . . Misfires 1 | . . . . . 1 . . . . Overload Shots . | . . . . . . . . . . Overflow Damage 105 | . . . . 11 23 71 . . . Projectiles 105 | . . . . 11 23 71 . . . Explosions . | . . . . . . . . . . Melee . | . . . . . . . . . . Knockbacks . | . . . . . . . . . . Impact . | . . . . . . . . . . Kinetic . | . . . . . . . . . . Secondary . | . . . . . . . . . . Self-Inflicted Damage 6 | . 6 . . . . . . . . Shots . | . . . . . . . . . . Rammed 2 | . 2 . . . . . . . . Targets Rammed 2 | . 2 . . . . . . . . Kicked . | . . . . . . . . . . Crushed . | . . . . . . . . . . Highest Temperature 572 | . 43 . . 572 118 109 425 187 . Average Temperature 92 | . 10 . . 140 51 49 126 92 . Received Heat Transfer 1248 | . 117 258 . 225 225 108 192 123 . Effects 10 | . . . . 8 . . 2 . . Shutdowns 3 | . . . . 2 . . 1 . . Energy Bleed 3 | . . . . 2 . . 1 . . Damage (major) 4 | . . . . 4 . . . . . Siege Activations . | . . . . . . . . . . Martial Activations . | . . . . . . . . . . Shielding Activations . | . . . . . . . . . . Robots Disrupted . | . . . . . . . . . . Combat Hostiles . | . . . . . . . . . . Robots Corrupted 6 | . . 6 . . . . . . . Combat Hostiles 5 | . . 5 . . . . . . . Parts Fried 26 | . . 25 . . . . . 1 . Impact Corruptions . | . . . . . . . . . . Robots Melted 3 | . . . . . 2 . 1 . . Combat Hostiles 3 | . . . . . 2 . 1 . . Parts Melted 17 | . 2 1 . 3 5 . 1 5 . Heat Transferred 7565 | . 605 . . 1321 1887 1221 1236 1295 . Parts Sabotaged 2 | . . . . . . . 2 . . Parts Stolen . | . . . . . . . . . . Parts Stripped . | . . . . . . . . . . Power Chain Reactions . | . . . . . . . . . . Alert | -11 -10 -10 -7 -5 -5 -5 -5 -4 -4 ------- Run | Yrd Mat Sub Scr Fac Upp Upp War Pro Fac Maximum Alert Level 1 | . . . . 1 . . . . . Low Security (%) 91 | 100 100 . . 79 . . . . 100 Level 1 8 | . . . . 20 . . . . . Level 2 . | . . . . . . . . . . Level 3 . | . . . . . . . . . . Level 4 . | . . . . . . . . . . Level 5 . | . . . . . . . . . . High Security . | . . . . . . . . . . Max Security . | . . . . . . . . . . Peak Influence 332 | . 104 . . 332 . . . . . Initial . | . . . . . . . . . . Average 64 | . 34 . . 108 . . . . . Influence Increases 2433 | . 431 600 . 523 300 179 200 200 . Destroy 0b10 Robot/C 1420 | . 260 220 . 200 280 160 120 180 . Destroy 0b10 Robot/NC 65 | . 25 . . 30 . 5 5 . . Destroy Leader 186 | . 76 20 . 40 20 10 . 20 . Allied During Kill 4 | . . . . . . 4 . . . Successful Hack 26 | . 9 . . 17 . . . . . Select Force Hacks 60 | . 60 . . . . . . . . Disable Machine 120 | . . . . 120 . . . . . Destroy Structure 117 | . 1 . . 116 . . . . . Lose Combat Pursuer 435 | . . 360 . . . . 75 . . Influence Decreases 2433 | . 345 569 117 207 612 183 136 264 . Entered New Map 343 | . . 42 117 . 118 2 . 64 . Time Decay 2070 | . 345 527 . 207 494 161 136 200 . Lost Ally 20 | . . . . . . 20 . . . Squads Dispatched 7 | . 3 . . 4 . . . . . Investigation 4 | . 3 . . 1 . . . . . Extermination 1 | . . . . 1 . . . . . Reinforcement . | . . . . . . . . . . Assault . | . . . . . . . . . . Garrison 2 | . . . . 2 . . . . . Intercept . | . . . . . . . . . . Searches Triggered . | . . . . . . . . . . Construction Impeded . | . . . . . . . . . . Haulers Reinforced . | . . . . . . . . . . Active Scanning Responses . | . . . . . . . . . . Cargo Convoy Interrupts . | . . . . . . . . . . Stealth | -11 -10 -10 -7 -5 -5 -5 -5 -4 -4 --------- Run | Yrd Mat Sub Scr Fac Upp Upp War Pro Fac Distress Signals 1 | . . . . 1 . . . . . Communications Jammed . | . . . . . . . . . . Distress Signals . | . . . . . . . . . . Times Spotted 155 | . 15 40 . 13 15 8 56 8 . Peak Tracking Total 13 | . 3 4 . 5 5 4 13 4 . Tactical Retreats 8 | . . 4 . . . . 4 . . Traps | -11 -10 -10 -7 -5 -5 -5 -5 -4 -4 ------- Run | Yrd Mat Sub Scr Fac Upp Upp War Pro Fac Traps Triggered 5 | . 2 . . 3 . . . . . Indirectly . | . . . . . . . . . . Trap Hack Attempts . | . . . . . . . . . . Triggered . | . . . . . . . . . . Disarmed . | . . . . . . . . . . Reprogrammed . | . . . . . . . . . . Reused . | . . . . . . . . . . Traps Extracted . | . . . . . . . . . . Installed . | . . . . . . . . . . Triggered . | . . . . . . . . . . Machines | -11 -10 -10 -7 -5 -5 -5 -5 -4 -4 ---------- Run | Yrd Mat Sub Scr Fac Upp Upp War Pro Fac Machines Disabled 13 | . . 3 . 8 . 1 1 . . Max in Single Turn 3 | . . 1 . 3 . 1 1 . . Machines Repaired . | . . . . . . . . . . Machines Dismantled . | . . . . . . . . . . Machines Sabotaged . | . . . . . . . . . . Overloaded Fab Kills . | . . . . . . . . . . Hacking | -11 -10 -10 -7 -5 -5 -5 -5 -4 -4 --------- Run | Yrd Mat Sub Scr Fac Upp Upp War Pro Fac Machines Accessed 22 | . 10 1 2 5 1 . 2 1 . Terminals 14 | . 8 . . 5 . . . 1 . Fabricators . | . . . . . . . . . . Repair Stations . | . . . . . . . . . . Recycling Units 2 | . 2 . . . . . . . . Scanalyzers . | . . . . . . . . . . Garrison Access . | . . . . . . . . . . Total Hacks 41 | . 20 1 4 9 1 . 5 1 . Successful 25 | . 9 1 4 4 1 . 5 1 . Failed 16 | . 11 . . 5 . . . . . Catastrophic 2 | . 1 . . 1 . . . . . Database Lockouts . | . . . . . . . . . . Manual 22 | . 16 . . 6 . . . . . Terminals 27 | . 17 . . 9 . . . 1 . Fabricators . | . . . . . . . . . . Repair Stations . | . . . . . . . . . . Recycling Units 3 | . 3 . . . . . . . . Scanalyzers . | . . . . . . . . . . Garrison Access . | . . . . . . . . . . Terminal Hacks 14 | . 2 1 4 . 1 . 5 1 . Record 9 | . . . 3 . . . 5 1 . Prototype ID Bank 1 | . 1 . . . . . . . . Open Door 1 | . . . . . 1 . . . . Locate Traps 1 | . 1 . . . . . . . . Proto ID Catalog 2 | . . 1 1 . . . . . . Fabricator Hacks . | . . . . . . . . . . Repair Station Hacks . | . . . . . . . . . . Recycling Unit Hacks . | . . . . . . . . . . Scanalyzer . | . . . . . . . . . . Garrison Access Hacks . | . . . . . . . . . . Unauthorized Hacks 11 | . 7 . . 4 . . . . . Terminals 9 | . 5 . . 4 . . . . . Botnet 9 | . 5 . . 4 . . . . . Fabricators . | . . . . . . . . . . Repair Stations . | . . . . . . . . . . Recycling Units 2 | . 2 . . . . . . . . Tunnel 2 | . 2 . . . . . . . . Scanalyzers . | . . . . . . . . . . Garrison Access . | . . . . . . . . . . Data Cores Recovered 3 | . 1 . . 2 . . . . . Used . | . . . . . . . . . . Hacking Detections 10 | . 6 . . 3 . . . 1 . Full Trace Events 1 | . . . . 1 . . . . . Feedback Events . | . . . . . . . . . . Feedback Blocked . | . . . . . . . . . . Robot Schematics Acquired . | . . . . . . . . . . Robots Built . | . . . . . . . . . . Authchips . | . . . . . . . . . . Time . | . . . . . . . . . . Total Robot Build Rating . | . . . . . . . . . . Part Schematics Acquired . | . . . . . . . . . . Parts Built . | . . . . . . . . . . Authchips . | . . . . . . . . . . Time . | . . . . . . . . . . Total Part Build Rating . | . . . . . . . . . . Parts Repaired . | . . . . . . . . . . Time . | . . . . . . . . . . Parts Recycled . | . . . . . . . . . . Recycled Matter . | . . . . . . . . . . Retrieved Matter . | . . . . . . . . . . Retrieved Components . | . . . . . . . . . . Parts Scanalyzed . | . . . . . . . . . . Part Schematics Acquired . | . . . . . . . . . . Parts Damaged . | . . . . . . . . . . Bothacking | -11 -10 -10 -7 -5 -5 -5 -5 -4 -4 ------------ Run | Yrd Mat Sub Scr Fac Upp Upp War Pro Fac Used RIF Installer . | . . . . . . . . . . Robots Hacked . | . . . . . . . . . . Non-combat . | . . . . . . . . . . Combat . | . . . . . . . . . . Robot Hacks Applied . | . . . . . . . . . . Relay Couplers Released . | . . . . . . . . . . Fabnet Peak Effective % . | . . . . . . . . . . Robots Rewired 1 | . . . . . 1 . . . . Allies Hacked . | . . . . . . . . . . Hacks Repelled . | . . . . . . . . . . Allies | -11 -10 -10 -7 -5 -5 -5 -5 -4 -4 -------- Run | Yrd Mat Sub Scr Fac Upp Upp War Pro Fac Total Allies 1 | . . . . . 1 . . . . Largest Group 1 | . . . . . 1 1 . . . Highest-Rated Group 29 | . . . . . 29 29 . . . Highest-Rated Ally 29 | . . . . . 29 29 . . . Total Orders . | . . . . . . . . . . Ally Attacks 4 | . . . . . . 4 . . . Total Damage 74 | . . . . . . 74 . . . Kills . | . . . . . . . . . . Allies Corrupted . | . . . . . . . . . . Allies Melted 1 | . . . . . . . 1 . . Intel | -11 -10 -10 -7 -5 -5 -5 -5 -4 -4 ------- Run | Yrd Mat Sub Scr Fac Upp Upp War Pro Fac Active Infowar (turns) . | . . . . . . . . . . Robot Analysis Total . | . . . . . . . . . . Derelict Logs Recovered 10 | . . 1 3 . 2 2 . 2 . Drone Launches . | . . . . . . . . . . Drone Recoveries . | . . . . . . . . . . Exploration | -11 -10 -10 -7 -5 -5 -5 -5 -4 -4 ------------- Run | Yrd Mat Sub Scr Fac Upp Upp War Pro Fac Turns Passed 11867 | 44 1033 2895 3102 758 1319 841 750 1114 11 Spaces Moved 10340 | 47 996 1778 2605 681 1378 930 724 1194 7 Core 15 | 2 . . 13 . . . . . . Treads . | . . . . . . . . . . Legs 2749 | . . 1000 1749 . . . . . . Wheels 7576 | 45 996 778 843 681 1378 930 724 1194 7 Hover . | . . . . . . . . . . Flight . | . . . . . . . . . . Fastest Speed 50 | 50 80 80 80 70 80 80 70 84 84 Average Speed 96 | 78 80 115 117 79 80 80 81 84 84 Slowest Speed 250 | 80 80 210 250 80 80 80 90 90 84 Overloaded Moves . | . . . . . . . . . . Propulsion Burnouts . | . . . . . . . . . . Robots Hopped . | . . . . . . . . . . Potential Cave-ins . | . . . . . . . . . . Cave-ins Triggered . | . . . . . . . . . . Exploration Rate (%) 70 | 4 89 83 87 17 95 87 80 94 . Regions Visited 9 Branch Regions 6 Pre-discovered Areas 5 | . 2 1 1 . . . . 1 . Known Exits Taken 6 | . . . 1 1 1 1 1 1 . Unknown Exits Taken 3 | 1 1 1 . . . . . . . Scrap Searched 16 | . . 5 4 . 2 1 . 4 . Spaces Dug 4 | . . . . 2 1 1 . . . Terrain Destroyed 156 | . . . . 60 46 25 2 23 . Melee . | . . . . . . . . . . Projectile 122 | . . . . 26 46 25 2 23 . AOE 34 | . . . . 34 . . . . . Terrain Rammed . | . . . . . . . . . . Walls Destroyed . | . . . . . . . . . . Machines Disabled . | . . . . . . . . . . Actions | -11 -10 -10 -7 -5 -5 -5 -5 -4 -4 --------- Run | Yrd Mat Sub Scr Fac Upp Upp War Pro Fac Total 11647 | 51 1163 2294 2652 844 1526 990 848 1267 12 Wait 632 | . 104 304 11 75 56 15 60 2 5 Move 10331 | 46 995 1777 2604 680 1377 929 723 1193 7 Hop . | . . . . . . . . . . Pick Up 8 | . 2 1 2 2 1 . . . . Fast Attach 48 | 5 8 7 13 5 . 1 9 . . Attach 7 | . 1 . 1 1 1 . . 3 . Detach 13 | . 2 . 7 1 . 1 . 2 . Swap 16 | . . 16 . . . . . . . Drop 39 | . 6 8 14 5 . . 6 . . Fire 299 | . 34 124 . 38 39 22 20 22 . Melee . | . . . . . . . . . . Ram 2 | . 2 . . . . . . . . Kick . | . . . . . . . . . . Crush . | . . . . . . . . . . Escape Stasis 22 | . . . . 22 . . . . . Rewire 2 | . . . . . 2 . . . . Trap . | . . . . . . . . . . Miscellaneous 228 | . 9 57 . 15 50 22 30 45 . Route ------- -11/Scrapyard -10/Materials (discovered 5 exits: [*Mat x3] / [*Min] / *Sub) -10/Subcaves (discovered 3 exits: [*Mat] / [*Rec] / *Scr) -7/Scraptown -5/Factory -5/Upper Caves -5/Upper Caves -5/Warlord -4/Proximity Caves -4/Factory (discovered 2 exits: Res / Upp) History --------- Turn | Location | Event 1 | -11/Scrapyard | Upgraded with Propulsion slot (x1) 1 | -11/Scrapyard | Upgraded with Weapon slot (x1) 22 | -11/Scrapyard | Discovered new exit (range 15) 45 | -11/Scrapyard | Entered Materials 225 | -10/Materials | Discovered new exit (range 3) 300 | -10/Materials | Build established: Mutant 446 | -10/Materials | Discovered new exit (range 16) 537 | -10/Materials | Discovered new exit (range 16) 652 | -10/Materials | Discovered new exit (range 3) 868 | -10/Materials | Reached level 2 882 | -10/Materials | Upgraded with Weapon slot (x1) 906 | -10/Materials | Upgraded with Utility slot (x1) 1069 | -10/Materials | Discovered new exit (range 8) 1078 | -10/Materials | Entered Subcaves 1079 | -10/Subcaves | Approached by a straggling Scientist 1091 | -10/Subcaves | Reached level 3 1189 | -10/Subcaves | Build established: Gunner 1442 | -10/Subcaves | Discovered new exit (range 15) 1699 | -10/Subcaves | Discovered new exit (range 9) 1891 | -10/Subcaves | A swath of the cavern ceiling suddenly collapsed 1971 | -10/Subcaves | A swath of the cavern ceiling suddenly collapsed 1976 | -10/Subcaves | Shifting Twisted Machinery released Sub. Power Source 2023 | -10/Subcaves | Shifting Twisted Machinery released Sub. Beam Cannon 2033 | -10/Subcaves | Scientist uncovered a shortcut to Scraptown 2275 | -10/Subcaves | Shifting Twisted Machinery released Sub. Power Source 2303 | -10/Subcaves | Shifting Twisted Machinery released Sub. Laser 2335 | -10/Subcaves | Learned location of Zion (-6) 3524 | -10/Subcaves | Visited 4L-MR0's lab 3531 | -10/Subcaves | Upgraded with Utility slot (x1) 3541 | -10/Subcaves | Found Power Bank 3543 | -10/Subcaves | Attached Power Bank, gained temporary slots: Power x3 3973 | -10/Subcaves | Entered Scraptown 3975 | -7/Scraptown | Reached level 4 4191 | -7/Scraptown | Scanned Subdweller tech in exchange for log data 4197 | -7/Scraptown | Learned location of 2 exits from Lower Caves 4199 | -7/Scraptown | Learned location of Testing (-3) 4285 | -7/Scraptown | Visited UFD Registry 4285 | -7/Scraptown | Registered with UFD as "Coghead" 4398 | -7/Scraptown | Delivered Scrap Shield to a Scientist 4475 | -7/Scraptown | Visited Supply Room 4515 | -7/Scraptown | Build established: Mutant 4515 | -7/Scraptown | Visited Scrap Suit Storage 4543 | -7/Scraptown | Visited Scrapoid Research Area 4556 | -7/Scraptown | Visited Modified Component R&D 4621 | -7/Scraptown | Visited Infowarlord's Domain 4631 | -7/Scraptown | Found Exp. Signal Interpreter 4664 | -7/Scraptown | Visited Scrapoid Pod Storage 4687 | -7/Scraptown | Visited Science Guys 4764 | -7/Scraptown | Visited Chapter 10 4790 | -7/Scraptown | Visited Curators Association 4811 | -7/Scraptown | Visited Abandonware Association 5009 | -7/Scraptown | Heard Great Nut preacher, LISTEN AND RECITE! 5242 | -7/Scraptown | Visited Cyclists 5286 | -7/Scraptown | Visited Comm Corps 5407 | -7/Scraptown | Visited Fellowship of the Rings 5425 | -7/Scraptown | Visited Assassins FH 6109 | -7/Scraptown | Build established: Skirmisher 6216 | -7/Scraptown | Upgraded with Utility slot (x1) 6220 | -7/Scraptown | Found Scrap Suit 6651 | -7/Scraptown | Build established: Scrapper 6718 | -7/Scraptown | Visited Artisan Demo Area 7069 | -7/Scraptown | Discovered new exit (range 5) 7074 | -7/Scraptown | Identified exit to Factory 7075 | -7/Scraptown | Entered Factory 7076 | -5/Factory | Identified exit to Upper Caves 7077 | -5/Factory | Reached level 5 7082 | -5/Factory | Upgraded with Propulsion slot (x1) 7664 | -5/Factory | Core integrity fell below 50% 7686 | -5/Factory | Reached level 6 7688 | -5/Factory | Garrison activated, responded to threat 7833 | -5/Factory | Entered Upper Caves 7835 | -5/Upper Caves | UFD Scientist delivered a prototype 7890 | -5/Upper Caves | Learned Factory terminal intel 7992 | -5/Upper Caves | Core integrity fell below 20% 7997 | -5/Upper Caves | Reached level 7 8027 | -5/Upper Caves | Upgraded with Utility slot (x1) 8072 | -5/Upper Caves | Entered a destroyed Warlord outpost 8248 | -5/Upper Caves | Discovered new exit (range 6) 8254 | -5/Upper Caves | Identified exit to Upper Caves 8483 | -5/Upper Caves | Attracted the attention of an 0b10 checkpoint 8664 | -5/Upper Caves | Attracted the attention of an 0b10 outpost 8924 | -5/Upper Caves | Encountered a Warlord checkpoint 9152 | -5/Upper Caves | Entered another Upper Caves area 9152 | -5/Upper Caves | Accompanied by 1 ally 9154 | -5/Upper Caves | Reached level 8 9304 | -5/Upper Caves | Attracted the attention of an 0b10 checkpoint 9534 | -5/Upper Caves | Learned location of 1 exit from Factory 9575 | -5/Upper Caves | Discovered new exit (range 15) 9580 | -5/Upper Caves | Encountered a Warlord checkpoint 9595 | -5/Upper Caves | Identified exit to Warlord 9654 | -5/Upper Caves | Attacked by a delusional Derelict stockpiling parts 9798 | -5/Upper Caves | Learned Factory garrison access intel 9993 | -5/Upper Caves | Entered Warlord 9995 | -5/Warlord | Reached level 9 10227 | -5/Warlord | Rebuked by Warlord 10252 | -5/Warlord | Warlord's base attacked by MAIN.C 10316 | -5/Warlord | Build established: Hacker-Scrapper 10479 | -5/Warlord | Spotted B-75 Beast 10516 | -5/Warlord | Lost 3 allies 10524 | -5/Warlord | Spotted B-86 Titan 10525 | -5/Warlord | Destroyed B-75 Beast 10602 | -5/Warlord | Warlord forces counterattacked 10657 | -5/Warlord | Spotted Striker 10658 | -5/Warlord | Spotted Striker 10660 | -5/Warlord | Spotted B-86 Titan 10664 | -5/Warlord | Destroyed Striker 10719 | -5/Warlord | Lost 5 allies 10735 | -5/Warlord | Discovered new exit (range 8) 10742 | -5/Warlord | Identified exit to Proximity Caves 10743 | -5/Warlord | Entered Proximity Caves 10745 | -4/Proximity Caves | Reached level 10 10745 | -4/Proximity Caves | Upgraded with Propulsion slot (x1) 11004 | -4/Proximity Caves | Learned location of Quarantine (-2) 11081 | -4/Proximity Caves | Attracted the attention of an 0b10 checkpoint 11093 | -4/Proximity Caves | Discovered new exit (range 15) 11118 | -4/Proximity Caves | Identified exit to Factory 11154 | -4/Proximity Caves | Learned Research emergency access door positions 11179 | -4/Proximity Caves | Reached level 11 11527 | -4/Proximity Caves | Spotted B-86 Titan 11857 | -4/Proximity Caves | Entered Factory 11858 | -4/Factory | Identified exit to Upper Caves 11859 | -4/Factory | Identified exit to Research 11859 | -4/Factory | Reached level 12 11860 | -4/Factory | Loaded intel: 26 terminal locations 11861 | -4/Factory | Loaded intel: 4 garrison access locations 11868 | -4/Factory | Self-destructed Last Messages --------------- 11542_ Used Protomatter to restore part integrity (+96, depleted) 11582_ Searching scrap... 11582_ Found Mak. Hammer. 11582_ Found 34 Matter. 11615_ Searching scrap... 11615_ Found EM Shield. 11615_ Found Imp. Kinecellerator. 11615_ Found 39 Matter. 11617_ Searching scrap... 11617_ Found Imp. Arc Projector. 11617_ Found Imp. Heavy Armor Plating. 11617_ Found 60 Matter. LOCATION=FACTORY GOAL=ESCAPE Loading 1 Upper Caves entrance... Loading 1 Factory exit... 11859_ Reached level 12. Loading Factory terminal intel (x26)... Loading Factory garrison access intel (x4)... [Achievement: Tester] Map ----- +----------------------------------------------------+ | ????????????????????????????????????? | | ????????????????????????????????????? | | ????????????????????????????????????? | | ????????????????????????????????????? | | ????????????????????????????????????? | | ????????????????????????????????????? | | ????????????????????????????????????? | | ????????????????????????????????????? | | ????????????????????????????????????? | | ????????????????????????????????????? | | ????????????????????????????????????? | | ????????????????????????????????????? | | ????????????????????????????????????? | | ????????????????????????????????????? | | ????????????????????????????????????? | | ????????????????????????????????????? | | ????????????????????????????????????? | | ?????###########????????????????????? | | ?????# #????????????????????? | | ?????#""" #????????????????????? | | ?????#"R "" #????????????????????? | | ?????#""" "" #????????????????????? | | ?????#""" """ #????????????????????? | | ?????# """ #????????????????????? | | ?????# """ #????????????????????? | | ?????# @ #????????????????????? | | ?????#####+#####????????????????????? | | ??????# #?????????????????????? | | ??????# #?????????????????????? | | ??????# #?????????????????????? | | ??????# #?????????????????????? | | ??????# #?????????????????????? | | ??????### #?"""?????????????????? | | ????????# #?"T"?????????????????? | | ????????# #?????????????????????? | | ????????+ +?????????????????????? | | ????????# #?????????????????????? | | ????????# #?????????????????????? | | ????????# #?????????????????????? | | ????????# #?????????????????????? | | ????????# #?????????????????????? | | ????????# ?????????????????????? | | ????????? ?????????????????????? | | ????????? ?????????????????????? | | ????????? ???????????????????????? | | ????????????????????????????????????? | | ????????????????????????????????????? | | ????????????????????????????????????? | | ????????????????????????????????????? | | ????????????????????????????????????? | +----------------------------------------------------+ Best States ------------- Heat Dissipation 97 Energy Generation 48 Energy Capacity 740 Matter Stores 300 Matter Capacity 300 Sight Range 16 Robot Scan Range 16 Terrain Scan Density 10 Armor Coverage 800 Resistance: EM 25 Evasion (%) 55 Offensive Hacking 20 Defensive Hacking 10 Item Schematics ----------------- None Robot Schematics ------------------ None Fabricated ------------ Nothing Repaired ---------- Nothing Alien Tech Used ----------------- None Achievements -------------- Tester Challenges ------------ None RPGLIKE | -11 -10 -10 -7 -5 -5 -5 -5 -4 -4 --------- Run | Yrd Mat Sub Scr Fac Upp Upp War Pro Fac Levels Raised 11 | . 1 1 1 2 1 1 1 2 1 XP Earned 19966 | 3000 1950 2200 650 3360 2000 1350 1956 2000 1500 XP Spent 17755 | 2850 1420 800 2200 3200 1505 1500 1520 2760 . Upgrades 52 | 7 4 1 9 12 4 2 6 7 . Propulsion Slot 3 | 1 . . . 1 . . . 1 . Utility Slot 4 | . 1 1 1 . 1 . . . . Weapon Slot 2 | 1 1 . . . . . . . . Core Integrity 9 | . . . . . 3 . 2 4 . Heat Dissipation 12 | . 2 . . 10 . . . . . Mass Support 2 | 1 . . . 1 . . . . . Inventory Capacity 1 | 1 . . . . . . . . . Sensor Range 8 | . . . 8 . . . . . . Ranged Accuracy 5 | 3 . . . . . 2 . . . Hack Attack % 4 | . . . . . . . 3 1 . Hack Defense % 2 | . . . . . . . 1 1 . Protomatter Created 1598 | . 99 529 . 160 303 174 2 331 . Integrity Restored 4519 | . 152 924 . 332 1042 451 627 991 . Core 3464 | . 96 610 . 163 884 189 627 895 . Parts 1055 | . 56 314 . 169 158 262 . 96 . Protomatter Decayed 554 | . 45 248 . 48 36 74 103 . . Game ------ Seed GravitonEfficiencySpear Manual? 0 Play Time 01:39:17 Cumulative 151.3 hours Start 2025.09.14 @ 00:46:52 End 2025.09.14 @ 02:59:38 Sessions 1 Manual Loads 0 Difficulty Rogue Special Mode Winter2019/RPGLIKE Game No. 68 Rogue 64 Adventurer 4 Explorer 0 Win Type - Total 3 Types 2/0/1/0/0/0/0/0/0/0 Lore% 63 Gallery% 50 Achievement% 53 Wizard Run 0 Options --------- Layout 0 ASCII 0 Keyboard 0 Movement Arrows Keybinds 0 Fullscreen 2 Font 32/SmallcapsGlow Map View 88x55 Zoom Use 0% Tactical HUD 1 Map Filters NONE Filters NONE Steam 1 RUN: 8528d1c7-9c18-48ff-b4af-bc6ebdbdb01d